bitfinex/quotes_BTCUSD_20250308
["timestamp","ask_amount","ask_price","bid_price","bid_amount"]
[1741453113884,0.011575,86393.0,86389.0,0.00776442]
[1741453114867,0.011575,86392.0,86390.0,0.0792]
[1741453115066,0.011575,86392.0,86391.0,0.00776196]
[1741453115387,0.05862433,86394.0,86391.0,0.00776196]
[1741453115524,0.001,86393.0,86391.0,0.00776196]
[1741453115721,0.05862433,86394.0,86391.0,0.00776196]
[1741453115922,0.011575,86392.0,86391.0,0.00776196]
[1741453116533,0.011575,86391.0,86390.0,0.0792]
[1741453116739,0.196779,86391.0,86390.0,0.0792]
[1741453117977,0.196788,86387.0,86386.0,0.542]
[1741453119593,0.19655118,86387.0,86386.0,0.542]
[1741453121173,0.19655118,86387.0,86386.0,0.5497404]
[1741453123639,0.19655118,86387.0,86386.0,0.0077404]
[1741453129862,0.19631734,86387.0,86386.0,0.0077404]
[1741453132633,0.185208,86389.0,86386.0,0.0077404]
[1741453132877,0.196788,86387.0,86386.0,0.0077404]
[1741453135589,0.196788,86387.0,86386.0,0.5497404]
[1741453139170,0.196788,86387.0,86386.0,0.5500804]
[1741453139748,0.196958,86387.0,86386.0,0.5500804]
[1741453143501,0.011745,86387.0,86386.0,0.5500804]
[1741453145577,0.196781,86390.0,86386.0,0.5500804]
[1741453145578,0.15487607,86390.0,86386.0,0.5500804]
[1741453146008,0.011575,86387.0,86386.0,0.5500804]
[1741453149058,0.196783,86389.0,86386.0,0.5500804]
[1741453149549,0.011575,86388.0,86386.0,0.5500804]
[1741453152804,0.196788,86387.0,86386.0,0.5500804]
[1741453153245,0.00017,86389.0,86386.0,0.5500804]
[1741453153446,0.00017,86389.0,86387.0,0.185213]
[1741453153646,0.00017,86389.0,86387.0,0.196788]
[1741453154007,0.00017,86389.0,86388.0,0.13900055]
[1741453156292,0.011745,86389.0,86388.0,0.13900055]
[1741453156865,0.00017,86389.0,86388.0,0.13900055]
[1741453158035,0.011745,86389.0,86388.0,0.13900055]
[1741453158241,0.00017,86389.0,86388.0,0.13900055]
[1741453159222,0.00017,86389.0,86388.0,0.68100055]
[1741453160169,0.00017,86389.0,86388.0,0.69257555]
[1741453160839,0.00017,86389.0,86388.0,1.01597555]
[1741453161015,0.00017,86389.0,86388.0,1.33547219]
[1741453161218,0.00017,86389.0,86388.0,1.31597555]
[1741453162791,0.00017,86389.0,86388.0,1.33543118]
[1741453162986,0.00117,86389.0,86388.0,1.33543118]
[1741453163523,0.00217,86389.0,86388.0,1.33543118]
[1741453164958,0.00217,86389.0,86388.0,1.33577118]
[1741453165493,0.00038619,86404.0,86400.0,0.272659]
[1741453165651,0.00038619,86404.0,86400.0,0.930079]
[1741453165878,0.00038619,86404.0,86400.0,0.9373335]
[1741453167608,0.0021699,86401.0,86400.0,0.9373335]
[1741453175006,0.10427954,86415.0,86406.0,0.011573]
[1741453175146,0.185158,86413.0,86406.0,0.196743]
[1741453175343,0.185158,86413.0,86407.0,0.00724591]
[1741453175588,0.10427954,86415.0,86407.0,0.00724591]
[1741453175820,0.011572,86413.0,86407.0,0.01881891]
[1741453176561,0.21623235,86413.0,86407.0,0.01881891]
[1741453176771,0.196729,86413.0,86407.0,0.01881891]
[1741453177174,0.196729,86413.0,86408.0,0.53966]
[1741453177175,0.011572,86409.0,86408.0,0.53966]
[1741453177443,0.011572,86409.0,86408.0,0.54683617]
[1741453177847,0.196731,86412.0,86408.0,0.54683617]
[1741453178049,0.196737,86410.0,86408.0,0.54683617]
[1741453178628,0.196737,86410.0,86408.0,0.53966]
[1741453178849,0.196737,86410.0,86409.0,0.00717495]
[1741453181140,0.196737,86410.0,86409.0,0.00817495]
[1741453183081,0.196737,86410.0,86409.0,0.54783495]
[1741453188031,0.011572,86410.0,86409.0,0.54783495]
[1741453190533,0.0117419,86410.0,86409.0,0.54783495]
[1741453193688,0.0001699,86410.0,86409.0,0.54783495]
[1741453193896,0.0001699,86410.0,86409.0,0.62303495]
[1741453195440,0.0001699,86410.0,86409.0,0.63460695]
[1741453197612,0.185138,86422.0,86417.0,0.011571]
[1741453197810,0.185138,86422.0,86415.0,0.185152]
[1741453197811,0.011571,86421.0,86418.0,0.53966]
[1741453198044,0.185142,86420.0,86418.0,0.54681851]
[1741453198237,0.196713,86420.0,86418.0,0.54681851]
[1741453198439,0.02451556,86420.0,86419.0,0.0796]
[1741453198703,0.196709,86422.0,86419.0,0.08675728]
[1741453198873,0.199709,86422.0,86419.0,0.08675728]
[1741453199080,0.202709,86422.0,86419.0,0.08675728]
[1741453199404,0.202709,86422.0,86420.0,0.53966]
[1741453199405,0.003,86422.0,86420.0,0.53966]
[1741453199562,0.01157,86423.0,86420.0,0.53966]
[1741453199775,0.196709,86422.0,86420.0,0.54481605]
[1741453199977,0.199709,86422.0,86420.0,0.54481605]
[1741453200201,0.199709,86422.0,86421.0,0.53766]
[1741453200400,0.22068042,86422.0,86421.0,0.53766]
[1741453201749,0.02397142,86422.0,86421.0,0.53766]
[1741453202091,0.002,86422.0,86421.0,0.53766]
[1741453202288,0.002,86422.0,86421.0,0.549231]
[1741453202488,0.02635939,86422.0,86421.0,0.61876]
[1741453202909,0.04110019,86422.0,86421.0,0.53766]
[1741453203582,0.03810019,86422.0,86421.0,0.53766]
[1741453203929,0.03810019,86422.0,86421.0,0.53866]
[1741453204122,0.03610019,86422.0,86421.0,0.53866]
[1741453204326,0.03610019,86422.0,86421.0,0.001]
[1741453205182,0.196711,86421.0,86420.0,0.54481605]
[1741453207091,0.196711,86421.0,86420.0,0.54581605]
[1741453211908,0.196711,86421.0,86420.0,0.54481605]
[1741453215786,0.196711,86421.0,86420.0,0.00715605]
[1741453216950,0.196711,86421.0,86420.0,0.00749565]
[1741453217561,0.196711,86421.0,86420.0,0.0003396]
[1741453227335,0.21125185,86421.0,86420.0,0.0003396]
[1741453227540,1.14176285,86421.0,86420.0,0.0003396]
[1741453227953,0.71929785,86421.0,86420.0,0.0003396]
[1741453228150,0.68378485,86421.0,86420.0,0.0003396]
[1741453228449,0.66908485,86421.0,86420.0,0.0003396]
[1741453228652,0.45533585,86421.0,86420.0,0.0003396]
[1741453228827,0.47842463,86421.0,86420.0,0.0003396]
[1741453229086,0.47742463,86421.0,86420.0,0.0003396]
[1741453229287,0.47759443,86421.0,86420.0,0.0003396]
[1741453230178,0.23651043,86421.0,86420.0,0.0003396]
[1741453230412,0.58487443,86421.0,86420.0,0.0003396]
[1741453231048,0.88487443,86421.0,86420.0,0.0003396]
[1741453231404,0.88187443,86421.0,86420.0,0.0003396]
[1741453231621,0.88363252,86421.0,86420.0,0.0003396]
[1741453231826,0.88363252,86421.0,86409.0,0.0003396]
[1741453231827,0.51127585,86410.0,86409.0,0.0003396]
[1741453232025,1.90745885,86410.0,86409.0,0.0003396]
[1741453232231,2.18530385,86410.0,86409.0,0.00813275]
[1741453232432,2.13319485,86410.0,86409.0,0.0003396]
[1741453233031,2.13619485,86410.0,86409.0,0.0003396]
[1741453233415,0.896745,86406.0,86405.0,0.53547851]
[1741453233609,3.376694,86406.0,86405.0,0.53547851]
[1741453233942,3.517111,86406.0,86405.0,0.53547851]
[1741453234854,3.518111,86406.0,86405.0,0.53547851]
[1741453235070,3.520111,86406.0,86405.0,0.53547851]
[1741453235211,3.519111,86406.0,86405.0,0.53547851]
[1741453235412,3.520111,86406.0,86405.0,0.53547851]
[1741453235812,3.521111,86406.0,86405.0,0.53547851]
[1741453235999,3.525111,86406.0,86405.0,0.53547851]
[1741453236400,3.497361,86406.0,86405.0,0.53547851]
[1741453236660,0.196775,86393.0,86392.0,0.53547851]
[1741453237069,0.196775,86393.0,86392.0,0.54329251]
[1741453237280,0.397287,86393.0,86392.0,0.54329251]
[1741453237484,0.397457,86393.0,86392.0,0.54329251]
[1741453237688,0.386663,86393.0,86392.0,0.54329251]
[1741453237889,0.196775,86393.0,86392.0,0.54329251]
[1741453238583,0.16855754,86402.0,86392.0,0.54329251]
[1741453238725,0.11764,86402.0,86401.0,0.196756]
[1741453238946,0.1536,86406.0,86405.0,0.011573]
[1741453239153,0.1536,86406.0,86405.0,0.73222551]
[1741453239154,0.005,86406.0,86405.0,0.73222551]
[1741453239348,0.005,86406.0,86405.0,0.81943035]
[1741453240560,0.011572,86414.0,86407.0,0.196742]
[1741453240714,0.011572,86414.0,86408.0,0.011573]
[1741453240912,0.011572,86414.0,86409.0,0.0080726]
[1741453241207,0.011572,86414.0,86410.0,0.53547851]
[1741453241340,0.011572,86414.0,86410.0,0.54254988]
[1741453241750,0.011571,86416.0,86410.0,0.55412188]
[1741453242822,0.011571,86416.0,86413.0,0.004759]
[1741453243181,0.011571,86416.0,86414.0,0.00806647]
[1741453243967,0.196725,86415.0,86414.0,0.00806647]
[1741453244180,0.011572,86415.0,86414.0,0.00806647]
[1741453245540,0.011572,86415.0,86414.0,0.54254498]
[1741453250205,0.289451,86415.0,86414.0,0.54254498]
[1741453251218,0.011572,86415.0,86414.0,0.54254498]
[1741453251419,0.011572,86415.0,86414.0,0.00806647]
[1741453251420,0.257,86415.0,86414.0,0.00806647]
[1741453251677,0.011572,86414.0,86413.0,0.004759]
[1741453251831,0.442625,86414.0,86413.0,0.004759]
[1741453252764,0.443625,86414.0,86413.0,0.004759]
[1741453253887,0.175746,86414.0,86413.0,0.004759]
[1741453254215,0.176746,86414.0,86413.0,0.004759]
[1741453254772,0.176746,86414.0,86390.0,0.53447851]
[1741453254773,0.196777,86392.0,86390.0,0.53447851]
[1741453254976,0.614377,86392.0,86390.0,0.53447851]
[1741453256389,0.901179,86392.0,86390.0,0.53447851]
[1741453257425,0.877563,86392.0,86390.0,0.53447851]
[1741453257825,0.735887,86392.0,86390.0,0.53447851]
[1741453258147,0.614377,86392.0,86390.0,0.53447851]
[1741453258305,0.616377,86392.0,86390.0,0.53447851]
[1741453258496,0.720077,86392.0,86390.0,0.53447851]
[1741453258699,0.617377,86392.0,86390.0,0.53447851]
[1741453258902,2.18118556,86392.0,86390.0,0.53447851]
[1741453259101,2.48920156,86392.0,86390.0,0.53447851]
[1741453259340,2.49020156,86392.0,86390.0,0.53447851]
[1741453259957,2.48920156,86392.0,86390.0,0.53447851]
[1741453260370,2.48920156,86392.0,86380.0,0.0003392]
[1741453260576,2.14155856,86392.0,86380.0,0.0003392]
[1741453260805,1.09901856,86392.0,86380.0,0.0003392]
[1741453261000,1.09701856,86392.0,86380.0,0.0003392]
[1741453261382,1.10101856,86392.0,86380.0,0.0003392]
[1741453261979,0.90401856,86392.0,86380.0,0.0003392]
[1741453262179,1.10401856,86392.0,86380.0,0.0003392]
[1741453262977,0.51132385,86389.0,86380.0,0.0003392]
[1741453263386,1.95851285,86389.0,86380.0,0.0003392]
[1741453264075,1.96051285,86389.0,86380.0,0.0003392]
[1741453264421,0.51332385,86389.0,86380.0,0.0003392]
[1741453264614,0.51632385,86389.0,86380.0,0.0003392]
[1741453264821,1.90221485,86389.0,86380.0,0.0003392]
[1741453265020,1.64744785,86389.0,86380.0,0.0003392]
[1741453265340,1.57140185,86389.0,86380.0,0.0003392]
[1741453265950,1.44674385,86389.0,86380.0,0.0003392]
[1741453268416,1.02011085,86389.0,86380.0,0.0003392]
[1741453268995,0.76942885,86389.0,86384.0,0.082]
[1741453269391,0.95463685,86389.0,86384.0,0.082]
[1741453269605,0.86009285,86389.0,86384.0,0.082]
[1741453270426,0.619423,86389.0,86384.0,0.1274]
[1741453271831,0.619423,86389.0,86388.0,0.53481851]
[1741453272034,0.619423,86389.0,86388.0,0.54173402]
[1741453272035,0.005,86389.0,86388.0,0.54173402]
[1741453272193,0.016575,86389.0,86388.0,0.62373402]
[1741453278066,0.011575,86389.0,86388.0,0.62373402]
[1741453278267,0.013575,86389.0,86388.0,0.62373402]
[1741453279360,0.015575,86389.0,86388.0,0.62373402]
[1741453289030,0.0157449,86389.0,86388.0,0.62373402]
[1741453296170,0.0041699,86389.0,86388.0,0.62373402]
[1741453296392,0.0157449,86389.0,86388.0,0.62373402]
[1741453296598,0.0157449,86389.0,86388.0,0.94713402]
[1741453297160,0.0137449,86389.0,86388.0,0.94713402]
[1741453297359,0.0157449,86389.0,86388.0,0.94713402]
[1741453297978,0.0137449,86389.0,86388.0,0.94713402]
[1741453298342,0.0147449,86389.0,86388.0,0.94713402]
[1741453299048,0.0031699,86389.0,86388.0,0.94713402]
[1741453304442,0.0147449,86389.0,86388.0,0.94713402]
[1741453305451,0.13572754,86393.0,86388.0,0.94713402]
[1741453305657,0.011575,86390.0,86389.0,0.00019541]
[1741453305852,0.011575,86390.0,86388.0,0.94713402]
[1741453305853,0.196783,86389.0,86388.0,0.94021851]
[1741453307349,0.198783,86389.0,86388.0,0.94021851]
[1741453309563,0.199783,86389.0,86388.0,0.94021851]
[1741453310469,0.32332487,86399.0,86388.0,0.40574]
[1741453310766,0.185189,86398.0,86388.0,0.40582024]
[1741453310988,0.011575,86389.0,86388.0,0.40582024]
[1741453311650,0.196783,86389.0,86388.0,0.40582024]
[1741453312032,0.196783,86389.0,86388.0,0.86622024]
[1741453313298,0.199783,86389.0,86388.0,0.86622024]
[1741453314658,0.003,86389.0,86388.0,0.99312024]
[1741453314859,0.003,86389.0,86388.0,1.00469524]
[1741453315018,0.003,86389.0,86388.0,0.99312024]
[1741453315814,0.002,86389.0,86388.0,0.99312024]
[1741453316469,0.003,86389.0,86388.0,0.99999607]
[1741453316615,0.001,86389.0,86388.0,0.99999607]
[1741453317019,0.002,86389.0,86388.0,0.99999607]
[1741453320433,0.0001699,86393.0,86388.0,0.99999607]
[1741453320434,0.0001699,86393.0,86392.0,0.326977]
[1741453320838,0.0001699,86393.0,86392.0,0.33412292]
[1741453321823,0.0001699,86393.0,86392.0,0.33212292]
[1741453322763,0.0011699,86393.0,86392.0,0.33512292]
[1741453323099,0.0011699,86393.0,86392.0,0.65852292]
[1741453327338,0.011573,86405.0,86398.0,0.011574]
[1741453327538,0.011573,86405.0,86400.0,0.196758]
[1741453327539,0.21664723,86405.0,86400.0,0.196758]
[1741453327843,0.21664723,86405.0,86401.0,0.00703357]
[1741453328644,0.01989923,86405.0,86404.0,0.011573]
[1741453328933,0.011572,86414.0,86404.0,0.060573]
[1741453329147,0.011572,86414.0,86407.0,0.196742]
[1741453329554,0.011572,86413.0,86408.0,0.00702499]
[1741453329759,0.19673,86413.0,86408.0,0.00702499]
[1741453330006,0.01990659,86413.0,86408.0,0.01859799]
[1741453330255,0.0001698,86415.0,86414.0,0.011572]
[1741453330507,0.0001698,86415.0,86414.0,0.092772]
[1741453330807,0.0001698,86415.0,86414.0,0.14878061]
[1741453330808,0.01998926,86415.0,86414.0,0.14878061]
[1741453331055,0.0001698,86415.0,86414.0,0.14878061]
[1741453331306,0.0001698,86415.0,86414.0,0.14478061]
[1741453331812,0.0021698,86415.0,86414.0,0.14478061]
[1741453332040,0.0041698,86415.0,86414.0,0.14478061]
[1741453333241,0.02405065,86415.0,86414.0,0.14478061]
[1741453333474,0.0157418,86415.0,86414.0,0.08420861]
[1741453333676,0.0157418,86415.0,86414.0,0.87080861]
[1741453334089,0.03570384,86415.0,86414.0,0.87080861]
[1741453334463,0.0157418,86415.0,86414.0,0.87080861]
[1741453335193,0.03519108,86415.0,86414.0,0.87080861]
[1741453335546,0.0157418,86415.0,86414.0,0.87080861]
[1741453335753,1.40821765,86415.0,86414.0,0.54740861]
[1741453335928,1.40821765,86415.0,86414.0,0.51583631]
[1741453336128,1.45771765,86415.0,86414.0,0.52164303]
[1741453337381,1.45571765,86415.0,86414.0,0.52164303]
[1741453337715,1.47884408,86415.0,86414.0,0.00580672]
[1741453337873,1.48284408,86415.0,86414.0,0.00580672]
[1741453338072,0.011574,86399.0,86398.0,0.51583631]
[1741453338278,0.314201,86399.0,86398.0,0.51583631]
[1741453338478,0.196761,86399.0,86398.0,0.51583631]
[1741453339277,0.196761,86399.0,86398.0,0.51683631]
[1741453339455,0.196761,86399.0,86398.0,0.51783631]
[1741453339662,0.011574,86399.0,86398.0,0.51783631]
[1741453340008,0.011573,86405.0,86399.0,0.011574]
[1741453340186,0.311573,86405.0,86399.0,0.196761]
[1741453340390,0.011573,86403.0,86398.0,0.59283631]
[1741453340554,0.19676,86400.0,86398.0,0.59283631]
[1741453340754,0.19676,86400.0,86398.0,0.59183631]
[1741453340954,0.19676,86400.0,86398.0,0.59083631]
[1741453341357,0.011574,86399.0,86398.0,0.51583631]
[1741453342866,0.011574,86399.0,86398.0,0.51683631]
[1741453343452,0.32611485,86399.0,86398.0,0.52271414]
[1741453343655,1.04773485,86399.0,86398.0,0.52271414]
[1741453343867,1.04773485,86399.0,86398.0,0.51537076]
[1741453344076,1.04773485,86399.0,86398.0,0.51637076]
[1741453344280,0.77193585,86399.0,86398.0,0.51637076]
[1741453344486,0.77193585,86399.0,86398.0,0.51537076]
[1741453344918,0.77493585,86399.0,86398.0,0.51437076]
[1741453345117,0.77793585,86399.0,86398.0,0.51437076]
[1741453345340,0.77493585,86399.0,86398.0,0.51437076]
[1741453345815,0.79005487,86399.0,86398.0,0.51437076]
[1741453346571,0.71463987,86399.0,86398.0,0.51437076]
[1741453346771,0.76974824,86399.0,86398.0,0.51437076]
[1741453347269,0.76974824,86399.0,86398.0,0.51471036]
[1741453349404,0.76974824,86399.0,86398.0,0.00621743]
[1741453349606,0.76974824,86399.0,86398.0,0.0003396]
[1741453351760,0.56974824,86399.0,86398.0,0.0003396]
[1741453352565,0.36732524,86399.0,86398.0,0.0003396]
[1741453352770,0.54352624,86399.0,86398.0,0.0003396]
[1741453353194,0.51834524,86399.0,86398.0,0.0003396]
[1741453355272,0.51834524,86399.0,86398.0,0.50883253]
[1741453355749,0.51834524,86399.0,86398.0,0.51477045]
[1741453359264,0.51834524,86399.0,86398.0,0.50896055]
[1741453359505,0.51834524,86399.0,86398.0,0.39270015]
[1741453359506,0.59254524,86399.0,86398.0,0.39270015]
[1741453359746,0.59254524,86399.0,86398.0,0.3864352]
[1741453359946,0.59271504,86399.0,86398.0,0.3864352]
[1741453360393,0.2,86393.0,86388.0,0.00034]
[1741453360629,0.2,86382.0,86380.0,7.864e-05]
[1741453360866,0.44351685,86381.0,86380.0,0.00046483]
[1741453361584,0.72239585,86381.0,86380.0,0.00046483]
[1741453362291,0.92239585,86381.0,86380.0,0.00046483]
[1741453363209,0.64351685,86381.0,86380.0,0.00046483]
[1741453363443,3.05328985,86381.0,86380.0,0.00046483]
[1741453363815,1.85610085,86381.0,86380.0,0.00046483]
[1741453363999,1.76499285,86381.0,86380.0,0.00046483]
[1741453364623,1.52755385,86381.0,86380.0,0.00046483]
[1741453366468,1.50193585,86381.0,86380.0,0.00046483]
[1741453366664,1.52540788,86381.0,86380.0,0.00046483]
[1741453367010,1.52640788,86381.0,86380.0,0.00046483]
[1741453367393,1.52740788,86381.0,86380.0,0.00046483]
[1741453367630,1.22469088,86381.0,86380.0,0.00046483]
[1741453367746,0.33704803,86381.0,86380.0,0.07736483]
[1741453367946,0.45444803,86381.0,86380.0,0.07736483]
[1741453368146,0.46312105,86381.0,86380.0,0.07736483]
[1741453369002,0.46212105,86381.0,86380.0,0.07736483]
[1741453369383,0.129976,86381.0,86380.0,0.07736483]
[1741453369652,0.012576,86381.0,86380.0,0.07736483]
[1741453370340,0.012576,86381.0,86380.0,0.45752251]
[1741453370481,0.011576,86381.0,86380.0,0.45752251]
[1741453375160,0.011576,86381.0,86380.0,0.38062251]
[1741453377786,0.012576,86381.0,86380.0,0.38062251]
[1741453383295,0.429936,86381.0,86380.0,0.38062251]
[1741453383497,1.82388885,86381.0,86380.0,0.2686044]
[1741453383929,1.51131285,86381.0,86380.0,0.2686044]
[1741453384129,1.52288885,86381.0,86380.0,0.2686044]
[1741453384542,1.52588885,86381.0,86380.0,0.2686044]
[1741453384725,1.52588885,86381.0,86380.0,0.23411441]
[1741453384938,0.21135385,86376.0,86375.0,0.005]
[1741453385146,0.21135385,86376.0,86349.0,0.3234]
[1741453385147,0.2,86363.0,86353.0,0.0759]
[1741453385352,0.32874585,86362.0,86361.0,0.00107146]
[1741453386314,2.20612885,86362.0,86361.0,0.00107146]
[1741453386634,0.66070085,86362.0,86361.0,0.00107146]
[1741453387353,0.66670085,86362.0,86361.0,0.00107146]
[1741453387833,0.69162066,86362.0,86361.0,0.00107146]
[1741453388829,0.35966566,86362.0,86361.0,0.00107146]
[1741453389009,0.94782766,86362.0,86361.0,0.00107146]
[1741453389913,0.95667917,86362.0,86361.0,0.00107146]
[1741453390119,0.97997412,86362.0,86361.0,0.00107146]
[1741453390326,0.196868,86352.0,86349.0,0.5424]
[1741453390587,0.196868,86352.0,86351.0,0.00051601]
[1741453390588,0.32876885,86352.0,86351.0,0.00051601]
[1741453390934,1.05582385,86352.0,86351.0,0.00051601]
[1741453391129,0.46765,86352.0,86351.0,0.00051601]
[1741453391332,0.196868,86352.0,86351.0,0.00051601]
[1741453391536,0.196868,86352.0,86351.0,0.00828703]
[1741453391732,0.196868,86352.0,86351.0,0.08518703]
[1741453393069,0.196868,86352.0,86351.0,0.08418703]
[1741453393283,0.196868,86352.0,86351.0,0.08518703]
[1741453394075,0.196868,86352.0,86351.0,0.62758703]
[1741453395081,0.196868,86352.0,86351.0,0.62775693]
[1741453396000,0.196868,86352.0,86351.0,0.55185693]
[1741453396578,0.75084085,86352.0,86351.0,0.55185693]
[1741453396803,0.87106885,86352.0,86351.0,0.55185693]
[1741453397216,0.87106885,86352.0,86351.0,0.55085693]
[1741453397605,0.87206885,86352.0,86351.0,0.55085693]
[1741453397823,0.87106885,86352.0,86351.0,0.55085693]
[1741453398171,0.87306885,86352.0,86351.0,0.55085693]
[1741453398746,0.83692385,86352.0,86351.0,0.55085693]
[1741453399695,0.83492385,86352.0,86351.0,0.55085693]
[1741453399925,0.83492385,86352.0,86351.0,0.00845693]
[1741453400260,0.83692385,86352.0,86351.0,0.00845693]
[1741453400740,0.83492385,86352.0,86351.0,0.00845693]
[1741453400958,0.83892385,86352.0,86351.0,0.00845693]
[1741453402339,0.83892385,86352.0,86349.0,0.53341489]
[1741453402340,0.196872,86350.0,86349.0,0.53341489]
[1741453402547,0.196904,86336.0,86335.0,0.52677389]
[1741453402741,0.196911,86333.0,86332.0,0.52677389]
[1741453402995,0.596226,86333.0,86332.0,0.52677389]
[1741453403188,0.587704,86333.0,86332.0,0.52677389]
[1741453403594,0.011583,86332.0,86328.0,0.0824]
[1741453403802,0.57778085,86332.0,86326.0,0.52677389]
[1741453404338,0.77778085,86332.0,86326.0,0.52677389]
[1741453405015,0.22612385,86332.0,86326.0,0.52677389]
[1741453405211,3.22598785,86332.0,86326.0,0.52677389]
[1741453405365,3.52598785,86332.0,86323.0,0.0003398]
[1741453405577,3.52698785,86332.0,86323.0,0.0003398]
[1741453406180,3.53655385,86332.0,86323.0,0.0003398]
[1741453406603,3.53555385,86332.0,86323.0,0.0003398]
[1741453406824,3.54255385,86332.0,86323.0,0.0003398]
[1741453407037,0.90618985,86332.0,86327.0,0.0824]
[1741453407239,0.90518985,86332.0,86327.0,0.0824]
[1741453407552,0.59818985,86332.0,86327.0,0.0824]
[1741453407704,0.75760085,86332.0,86327.0,0.0824]
[1741453407905,0.73706,86332.0,86327.0,0.0824]
[1741453408135,0.031149,86332.0,86327.0,0.0824]
[1741453408540,0.031149,86332.0,86328.0,0.048]
[1741453408942,0.031149,86332.0,86331.0,0.52717389]
[1741453409161,0.024149,86332.0,86331.0,0.52717389]
[1741453409459,0.028149,86332.0,86331.0,0.52717389]
[1741453409599,0.24413085,86332.0,86331.0,0.52717389]
[1741453413130,0.54413085,86332.0,86331.0,0.49336269]
[1741453413331,0.69463085,86332.0,86331.0,0.49336269]
[1741453413537,2.20613085,86332.0,86331.0,0.49336269]
[1741453413924,0.196936,86322.0,86321.0,0.001]
[1741453414087,0.84608585,86322.0,86321.0,0.001]
[1741453414891,0.48883285,86322.0,86321.0,0.001]
[1741453415099,0.57107685,86322.0,86321.0,0.001]
[1741453415523,0.33183685,86322.0,86321.0,0.001]
[1741453415781,0.33583685,86322.0,86321.0,0.001]
[1741453416067,0.97682985,86322.0,86321.0,0.001]
[1741453416358,0.97282985,86322.0,86321.0,0.001]
[1741453416609,0.98694887,86322.0,86321.0,0.001]
[1741453416811,0.74915387,86322.0,86321.0,0.001]
[1741453416983,0.74615387,86322.0,86321.0,0.001]
[1741453417187,0.74715387,86322.0,86321.0,0.001]
[1741453419249,0.74515387,86322.0,86321.0,0.001]
[1741453419665,0.74815387,86322.0,86321.0,0.001]
[1741453419869,0.696958,86312.0,86305.0,0.0852]
[1741453420065,3.50279985,86312.0,86311.0,0.000467]
[1741453420365,3.16453585,86312.0,86311.0,0.000467]
[1741453420589,3.12955485,86312.0,86311.0,0.000467]
[1741453420792,2.89462285,86312.0,86311.0,0.000467]
[1741453421002,2.53470685,86312.0,86311.0,0.000467]
[1741453421131,2.17910885,86312.0,86311.0,0.000467]
[1741453421333,2.18010885,86312.0,86311.0,0.000467]
[1741453422193,1.40679985,86312.0,86311.0,0.000467]
[1741453422405,1.40779985,86312.0,86311.0,0.000467]
[1741453422906,1.52515985,86312.0,86311.0,0.000467]
[1741453423724,1.54844285,86312.0,86311.0,0.000467]
[1741453425771,1.54844285,86312.0,86293.0,0.0001699]
[1741453425772,0.211588,86294.0,86293.0,0.0001699]
[1741453425999,0.02612885,86292.0,86288.0,0.26420455]
[1741453426202,0.02612885,86292.0,86291.0,0.0007869]
[1741453426557,0.02481474,86292.0,86291.0,0.0007869]
[1741453427645,0.02581474,86292.0,86291.0,0.0007869]
[1741453428255,1.60983974,86292.0,86291.0,0.0007869]
[1741453428454,2.00108874,86292.0,86291.0,0.0007869]
[1741453428659,2.11735074,86292.0,86291.0,0.0007869]
[1741453428901,2.93010747,86292.0,86291.0,0.0007869]
[1741453429037,4.42304647,86292.0,86291.0,0.0007869]
[1741453429242,4.13918147,86292.0,86291.0,0.0007869]
[1741453429442,4.13818147,86292.0,86291.0,0.0007869]
[1741453429653,4.14218147,86292.0,86291.0,0.0007869]
[1741453430058,4.13818147,86292.0,86291.0,0.0007869]
[1741453430264,0.011588,86289.0,86288.0,0.23409685]
[1741453430505,1.95463785,86289.0,86288.0,0.2342127]
[1741453430713,2.63014385,86289.0,86288.0,0.2342127]
[1741453430888,2.78864985,86289.0,86288.0,0.2342127]
[1741453431093,2.45649285,86289.0,86288.0,0.2342127]
[1741453431730,2.46861187,86289.0,86288.0,0.2342127]
[1741453432313,2.60101887,86289.0,86288.0,0.2342127]
[1741453432726,0.197043,86275.0,86274.0,0.0001699]
[1741453432903,0.32894385,86275.0,86274.0,0.00021026]
[1741453433093,1.04680685,86275.0,86274.0,0.00021026]
[1741453433546,0.842067,86275.0,86274.0,0.00021026]
[1741453433747,0.314403,86275.0,86274.0,0.00021026]
[1741453434695,0.564228,86275.0,86274.0,0.00021026]
[1741453435241,0.57776885,86275.0,86274.0,0.00021026]
[1741453435847,0.32894385,86275.0,86274.0,0.00021026]
[1741453436072,0.314403,86275.0,86274.0,0.00021026]
[1741453437001,0.315403,86275.0,86274.0,0.00021026]
[1741453437760,1.08569785,86275.0,86274.0,0.00021026]
[1741453437990,0.315403,86275.0,86274.0,0.00021026]
[1741453438401,0.199043,86275.0,86274.0,0.00021026]
[1741453438613,0.316403,86275.0,86274.0,0.00021026]
[1741453438804,0.34011704,86275.0,86274.0,0.00021026]
[1741453439611,0.51653504,86275.0,86274.0,0.00021026]
[1741453440129,0.53107589,86275.0,86274.0,0.00021026]
[1741453441516,0.53007589,86275.0,86274.0,0.00021026]
[1741453441668,0.52907589,86275.0,86274.0,0.00021026]
[1741453441869,0.19705,86272.0,86271.0,0.0004]
[1741453442073,2.603449,86272.0,86271.0,0.0004]
[1741453442315,0.742076,86272.0,86271.0,0.0004]
[1741453442518,0.477753,86272.0,86271.0,0.0004]
[1741453442676,0.573284,86272.0,86271.0,0.0828]
[1741453442881,0.468894,86272.0,86271.0,0.0828]
[1741453443088,0.471894,86272.0,86271.0,0.0828]
[1741453443422,0.473894,86272.0,86271.0,0.0004]
[1741453444389,0.48843485,86272.0,86271.0,0.0004]
[1741453444613,0.48343485,86272.0,86271.0,0.0004]
[1741453444809,0.48543485,86272.0,86271.0,0.0004]
[1741453445021,0.48843485,86272.0,86271.0,0.0004]
[1741453446975,0.50055387,86272.0,86271.0,0.0004]
[1741453447706,0.37754987,86272.0,86271.0,0.0004]
[1741453448089,1.11204387,86272.0,86271.0,0.0004]
[1741453448285,0.85219187,86272.0,86271.0,0.0004]
[1741453448715,0.77999387,86272.0,86271.0,0.0004]
[1741453448926,0.76807687,86272.0,86271.0,0.0004]
[1741453449510,0.57712387,86272.0,86271.0,0.0004]
[1741453450528,0.197055,86270.0,86267.0,0.0824]
[1741453450749,2.07144685,86270.0,86269.0,0.00511612]
[1741453450931,2.04578785,86270.0,86269.0,0.00511612]
[1741453452010,0.60556985,86270.0,86269.0,0.00511612]
[1741453453047,0.33372385,86270.0,86269.0,0.00511612]
[1741453455971,0.015591,86270.0,86269.0,0.05371612]
[1741453456153,0.015591,86270.0,86269.0,0.13621612]